fUST/lending_fUST_20250228
["ID","MTS","AMOUNT","RATE_DAILY","PERIOD"]
[354825586,1740720643830,-326.25672375,0.00074246,120]
[354825587,1740720643839,-500.0,0.00074246,120]
[354825588,1740720643850,-1000.0,0.00074246,120]
[354825589,1740720643860,-500.0,0.00074246,120]
[354825590,1740720643873,-500.0,0.00074246,120]
[354825591,1740720643883,-500.0,0.00074246,120]
[354825592,1740720643893,-500.0,0.00074246,120]
[354825593,1740720643902,-500.0,0.00074246,120]
[354825594,1740720643911,-357.57789475,0.00074246,120]
[354825595,1740720643920,-500.0,0.00074246,120]
[354825596,1740720643929,-300.0,0.00074246,120]
[354825597,1740720643940,-500.0,0.00074246,120]
[354825598,1740720643950,-500.0,0.00074246,120]
[354825599,1740720643959,-600.04531732,0.00074246,120]
[354825600,1740720643968,-500.0,0.00074246,120]
[354825602,1740720643977,-500.0,0.00074246,120]
[354825603,1740720643986,-500.0,0.00074246,120]
[354825604,1740720643996,-500.0,0.00074246,120]
[354825605,1740720644005,-500.0,0.00074246,120]
[354825607,1740720644014,-500.0,0.00074246,120]
[354825609,1740720644023,-552.08940437,0.00074246,120]
[354825611,1740720644032,-500.0,0.00074246,120]
[354825613,1740720644041,-500.0,0.00074246,120]
[354825615,1740720644050,-500.0,0.00074246,120]
[354825617,1740720644059,-500.0,0.00074246,120]
[354825618,1740720644181,-534.3790959,0.00074246,120]
[354825619,1740720644192,-500.0,0.00074246,120]
[354825620,1740720644202,-500.0,0.00074246,120]
[354825621,1740720644211,-500.0,0.00074246,120]
[354825622,1740720644221,-500.0,0.00074246,120]
[354825623,1740720644230,-500.0,0.00074246,120]
[354825624,1740720644239,-500.0,0.00074246,120]
[354825625,1740720644249,-500.0,0.00074246,120]
[354825626,1740720644258,-500.0,0.00074246,120]
[354825627,1740720644268,-500.0,0.00074246,120]
[354825628,1740720644277,-501.9700482,0.00074246,120]
[354825629,1740720644287,-502.6046389,0.00074246,120]
[354825630,1740720644296,-500.0,0.00074246,120]
[354825631,1740720644306,-500.0,0.00074246,120]
[354825632,1740720644315,-500.0,0.00074246,120]
[354825633,1740720644324,-500.0,0.00074246,120]
[354825634,1740720644334,-510.27539894,0.00074246,120]
[354825635,1740720644343,-500.0,0.00074246,120]
[354825636,1740720644353,-500.0,0.00074246,120]
[354825637,1740720644363,-500.0,0.00074246,120]
[354825638,1740720644372,-500.0,0.00074246,120]
[354825639,1740720644382,-500.0,0.00074246,120]
[354825640,1740720644392,-500.0,0.00074246,120]
[354825641,1740720644402,-500.0,0.00074246,120]
[354825642,1740720644416,-500.0,0.00074246,120]
[354825643,1740720644426,-500.0,0.00074246,120]
[354825644,1740720644438,-529.03076244,0.00074246,120]
[354825646,1740720644448,-500.0,0.00074246,120]
[354825647,1740720644457,-1000.0,0.00074246,20]
[354825648,1740720644467,-500.0,0.00074246,120]
[354825649,1740720644477,-334.48075822,0.00074246,31]
[354825650,1740720644486,-500.0,0.00074246,120]
[354825651,1740720644495,-257.04810025,0.00074246,120]
[354825652,1740720644505,-574.30025276,0.00074246,120]
[354825653,1740720644514,-151.0,0.00074247,120]
[354825654,1740720644523,-222000.0,0.00074247,2]
[354825655,1740720644534,-500.0,0.00074273,15]
[354825656,1740720644543,-500.0,0.00074273,15]
[354825657,1740720644552,-500.0,0.00074273,14]
[354825658,1740720644562,-500.0,0.00074273,15]
[354825659,1740720644571,-4415.25521403,0.0007431,5]
[354825660,1740720644580,-6016.53207192,0.0007432,120]
[354825661,1740720644589,-200.05827387,0.0007432,2]
[354825662,1740720644598,-800.0,0.0007433,30]
[354825663,1740720644607,-150.43,0.00074331,120]
[354825664,1740720644617,-500.0,0.00074331,120]
[354825665,1740720644626,-150.43,0.00074331,2]
[354825666,1740720644635,-500.0,0.00074331,120]
[354825667,1740720644645,-150.43,0.00074331,2]
[354825668,1740720644654,-517.633336,0.00074331,2]
[354825669,1740720644664,-4415.25521403,0.0007434,5]
[354825670,1740720644673,-17661.0208561,0.00074343,5]
[354825671,1740720644684,-34663.26991629,0.0007435,30]
[354825672,1740720644693,-151.0,0.00074353,30]
[354825673,1740720644702,-151.0,0.00074353,120]
[354825674,1740720644711,-275.336824,0.00074353,120]
[354825675,1740720644721,-200000.0,0.00074353,30]
[354825676,1740720644731,-500.0,0.00074373,15]
[354825677,1740720644741,-500.0,0.00074373,14]
[354825678,1740720644751,-500.0,0.00074373,2]
[354825679,1740720644761,-162.604944,0.00074507,10]
[354825680,1740720644771,-150.43,0.00074605,120]
[354825681,1740720644780,-500.0,0.00074605,120]
[354825682,1740720644790,-500.0,0.00074605,120]
[354825683,1740720644801,-300.68097637,0.00074879,120]
[354825684,1740720644811,-500.0,0.00074879,120]
[354825685,1740720644821,-999.9,0.00074879,120]
[354825686,1740720644831,-509.0,0.00075,42]
[354825687,1740720644840,-520.935625,0.00075153,120]
[354825688,1740720644853,-5000.0,0.00075424,120]
[354825689,1740720644863,-169.66521162,0.00076258,120]
[354825690,1740720644879,-509.0,0.000765,43]
[354825691,1740720644889,-3041.44,0.00076711,120]
[354825692,1740720644900,-151.0,0.000769,46]
[354825693,1740720644910,-1000.0,0.00076942,2]
[354825694,1740720644920,-2000.0,0.00078,120]
[354825695,1740720644931,-509.0,0.00078,44]
[354825696,1740720644942,-500.0,0.00078468,14]
[354825697,1740720644954,-666.0,0.00079123,120]
[354825698,1740720644964,-500.0,0.00079236,15]
[354825699,1740720644974,-4415.25521403,0.0007939,7]
[354825700,1740720644984,-315.93727907,0.000794,30]
[354825701,1740720645202,-875.10290904,0.000794,30]
[354825702,1740720645215,-308.32980534,0.000794,30]
[354825703,1740720645281,-500.0,0.00054794,120]
[354825704,1740720645291,-500.0,0.00054794,120]
[354825705,1740720645302,-22381.73366931,0.000794,30]
[354825706,1740720645523,-500.0,0.00054794,120]
[354825707,1740720645532,-503.88799154,0.00054794,120]
[354825708,1740720645542,-155.0,0.0006,120]
[354825709,1740720645555,-500.0,0.00074246,120]
[354825710,1740720645565,-500.0,0.00074246,120]
[354825711,1740720645575,-791.99975479,0.000794,30]
[354825712,1740720645586,-25326.89658245,0.000794,30]
[354825713,1740720645597,-999.999999,0.00079449,120]
[354825714,1740720645608,-500.0,0.00079452,120]
[354825715,1740720645618,-500.0,0.00079452,120]
[354825716,1740720645627,-500.0,0.00079452,120]
[354825717,1740720645638,-500.0,0.00079452,120]
[354825718,1740720645647,-247.21704794,0.00079452,120]
[354825719,1740720645656,-500.0,0.00079452,120]
[354825720,1740720645666,-500.0,0.00079452,120]
[354825721,1740720645675,-500.0,0.00079452,120]
[354825722,1740720645687,-500.0,0.00079452,120]
[354825723,1740720645696,-500.0,0.00079452,120]
[354825724,1740720645705,-500.0,0.00079452,120]
[354825725,1740720645715,-500.0,0.00079452,120]
[354825726,1740720645724,-500.0,0.00079452,120]
[354825727,1740720645734,-500.0,0.00079452,120]
[354825728,1740720645744,-500.0,0.00079452,120]
[354825729,1740720645753,-500.0,0.00079452,120]
[354825730,1740720645763,-939.19,0.00079452,120]
[354825731,1740720645772,-500.0,0.00079452,120]
[354825732,1740720645781,-500.0,0.00079452,120]
[354825733,1740720645791,-500.0,0.00079452,120]
[354825734,1740720645800,-807.71,0.00079452,120]
[354825735,1740720645809,-777.43,0.00079452,120]
[354825736,1740720645819,-664.65,0.00079452,120]
[354825737,1740720645828,-500.0,0.00079452,120]
[354825738,1740720645838,-530.31,0.00079452,120]
[354825739,1740720645849,-500.0,0.00079452,120]
[354825740,1740720645862,-655.7,0.00079452,120]
[354825741,1740720645871,-500.0,0.00079452,120]
[354825742,1740720645881,-231.65,0.00079452,120]
[354825743,1740720645891,-500.0,0.00079452,120]
[354825744,1740720645902,-500.0,0.00079452,120]
[354825745,1740720645911,-500.0,0.00079452,120]
[354825746,1740720645921,-500.0,0.00079452,120]
[354825747,1740720645931,-500.0,0.00079452,120]
[354825748,1740720645942,-500.0,0.00079452,120]
[354825749,1740720645952,-856.08,0.00079452,120]
[354825750,1740720645962,-657.51,0.00079452,120]
[354825751,1740720645971,-151.0,0.00079452,120]
[354825752,1740720645980,-500.0,0.00079452,120]
[354825753,1740720645990,-500.0,0.00079452,120]
[354825754,1740720646000,-500.0,0.00079452,120]
[354825755,1740720646009,-151.0,0.00079452,120]
[354825756,1740720646019,-500.0,0.00079452,120]
[354825757,1740720646028,-151.0,0.00079452,120]
[354825758,1740720646038,-500.0,0.00079452,2]
[354825759,1740720646047,-500.0,0.00079452,120]
[354825760,1740720646056,-500.0,0.00079452,120]
[354825761,1740720646066,-500.0,0.00079452,120]
[354825762,1740720646075,-500.0,0.00079452,120]
[354825763,1740720646084,-500.0,0.00079452,120]
[354825764,1740720646094,-151.0,0.00079452,120]
[354825765,1740720646103,-500.0,0.00079452,120]
[354825766,1740720646112,-500.0,0.00079452,120]
[354825767,1740720646123,-500.0,0.00079452,120]
[354825768,1740720646132,-500.0,0.00079452,120]
[354825769,1740720646143,-174.19642866,0.00079452,120]
[354825770,1740720646152,-566.29,0.00079452,120]
[354825771,1740720646162,-500.0,0.00079452,120]
[354825773,1740720646171,-1380.24,0.00079452,15]
[354825774,1740720646184,-500.0,0.00079452,120]
[354825775,1740720646194,-500.0,0.00079452,120]
[354825776,1740720646203,-500.0,0.00079452,120]
[354825777,1740720646212,-500.0,0.00079452,120]
[354825778,1740720646221,-500.0,0.00079452,120]
[354825779,1740720646231,-500.0,0.00079452,120]
[354825780,1740720646241,-500.0,0.00079452,120]
[354825781,1740720646251,-794.51,0.00079452,120]
[354825783,1740720646260,-151.0,0.00079452,120]
[354825785,1740720646269,-500.0,0.00079452,120]
[354825787,1740720646279,-691.52,0.00079452,120]
[354825789,1740720646288,-500.0,0.00079452,120]
[354825791,1740720646298,-500.0,0.00079452,120]
[354825794,1740720646308,-500.0,0.00079452,120]
[354825796,1740720646317,-500.0,0.00079452,120]
[354825798,1740720646327,-575.71,0.00079452,120]
[354825799,1740720646336,-500.0,0.00079452,120]
[354825800,1740720646346,-484.7159725,0.00079452,120]
[354825802,1740720646355,-1675.02192,0.00079452,120]
[354825803,1740720646364,-1675.02192,0.00079452,120]
[354825805,1740720646373,-500.0,0.00079452,120]
[354825806,1740720646381,-500.0,0.00079452,120]
[354825807,1740720646391,-500.0,0.00079452,120]
[354825808,1740720646400,-500.0,0.00079452,120]
[354825809,1740720646410,-500.0,0.00079452,120]
[354825810,1740720646420,-500.0,0.00079452,120]
[354825811,1740720646429,-500.0,0.00079452,120]
[354825812,1740720646444,-728.9,0.00079452,120]
[354825813,1740720646453,-557.8,0.00079452,120]
[354825814,1740720646462,-666.24,0.00079452,120]
[354825815,1740720646472,-500.0,0.00079452,120]
[354825816,1740720646481,-500.0,0.00079452,120]
[354825817,1740720646490,-500.0,0.00079452,120]
[354825818,1740720646499,-151.0,0.00079452,120]
[354825819,1740720646508,-500.0,0.00079452,120]
[354825821,1740720646518,-3583.39,0.00079452,120]
[354825823,1740720646527,-7999.07,0.00079452,7]
[354825825,1740720646537,-500.0,0.00079452,120]
[354825827,1740720646546,-5442.81,0.00079452,120]
[354825829,1740720646556,-207.613008,0.00079452,120]
[354825831,1740720646566,-500.0,0.00079452,120]
[354825833,1740720646575,-207.613008,0.00079452,120]
[354825835,1740720646585,-500.0,0.00079452,120]
[354825837,1740720646595,-500.0,0.00079452,120]
[354825839,1740720646604,-500.0,0.00079452,120]
[354825841,1740720646615,-500.0,0.00079452,120]
[354825843,1740720646625,-500.0,0.00079452,120]
[354825845,1740720646634,-500.0,0.00079452,120]
[354825847,1740720646644,-621.07,0.00079452,120]
[354825849,1740720646654,-151.0,0.00079452,120]
[354825851,1740720646666,-500.0,0.00079452,120]
[354825853,1740720646675,-500.0,0.00079452,120]
[354825855,1740720646687,-500.0,0.00079452,120]
[354825857,1740720646697,-500.0,0.00079452,120]
[354825859,1740720646706,-500.0,0.00079452,120]
[354825861,1740720646715,-500.0,0.00079452,45]
[354825863,1740720646724,-1251.25,0.00079452,120]
[354825865,1740720646734,-500.0,0.00079452,120]
[354825867,1740720646743,-151.0,0.00079452,120]
[354825869,1740720646753,-151.0,0.00079452,120]
[354825871,1740720646762,-819.28,0.00079452,120]
[354825873,1740720646771,-500.0,0.00079452,120]
[354825875,1740720646780,-500.0,0.00079452,120]
[354825877,1740720646789,-500.0,0.00079452,120]
[354825879,1740720646799,-500.0,0.00079452,120]
[354825881,1740720646807,-152.344756,0.00079452,120]
[354825883,1740720646817,-500.0,0.00079452,120]
[354825885,1740720646826,-500.0,0.00079452,120]
[354825887,1740720646834,-500.0,0.00079452,120]
[354825889,1740720646844,-151.0,0.00079452,120]
[354825891,1740720646857,-1554.83,0.00079452,120]
[354825893,1740720646871,-500.0,0.00079452,120]
[354825895,1740720646880,-500.0,0.00079452,120]
[354825897,1740720646889,-500.0,0.00079452,120]
[354825899,1740720646899,-3293.63,0.00079452,120]
[354825901,1740720646908,-500.0,0.00079452,30]
[354825903,1740720646917,-151.0,0.00079452,120]
[354825905,1740720646927,-2697.19,0.00079452,120]
[354825907,1740720646942,-753.35,0.00079452,120]
[354825909,1740720646951,-500.65391958,0.00079452,120]
[354825911,1740720646960,-500.0,0.00079452,120]
[354825913,1740720646969,-500.0,0.00079452,120]
[354825915,1740720646979,-550.92,0.00079452,120]
[354825928,1740720647094,-500.0,0.00079452,120]
[354825930,1740720647103,-500.0,0.00079452,120]
[354825932,1740720647112,-500.0,0.00079452,120]
[354825934,1740720647121,-628.40446825,0.00079452,120]
[354825936,1740720647131,-6494.59,0.00079452,120]
[354825938,1740720647140,-193.54,0.00079452,120]
[354825940,1740720647149,-500.0,0.00079452,120]
[354825942,1740720647158,-500.0,0.00079452,120]
[354825944,1740720647167,-500.0,0.00079452,120]
[354825946,1740720647176,-500.0,0.00079452,120]
[354825948,1740720647188,-507.31110738,0.00079452,120]
[354825950,1740720647198,-500.0,0.00079452,120]
[354825952,1740720647208,-151.0,0.00079452,120]
[354825954,1740720647217,-500.0,0.00079452,120]
[354825956,1740720647226,-505.40136399,0.00079452,120]
[354825958,1740720647235,-1771.41,0.00079452,120]
[354825960,1740720647244,-151.0,0.00079452,120]
[354825962,1740720647253,-502.97080208,0.00079452,120]
[354825964,1740720647263,-500.0,0.00079452,120]
[354825966,1740720647272,-702.74,0.00079452,120]
[354825967,1740720647280,-1284.86,0.00079452,120]
[354825969,1740720647290,-500.0,0.00079452,120]
[354825971,1740720647299,-500.0,0.00079452,120]
[354825974,1740720647309,-500.0,0.00079452,120]
[354825975,1740720647319,-2183.64,0.00079452,120]
[354825977,1740720647329,-151.0,0.00079452,120]
[354825979,1740720647339,-500.0,0.00079452,120]
[354825982,1740720647349,-500.0,0.00079452,120]
[354825984,1740720647358,-16311.60769617,0.00079452,7]
[354825998,1740720647492,-67.4741945,0.00054794,120]
[354826000,1740720647503,-432.22218837,0.00054794,120]
[354826002,1740720647512,-415.973752,0.0007,7]
[354826004,1740720647521,-500.0,0.00074246,120]
[354826006,1740720647530,-500.0,0.00074246,120]
[354826008,1740720647540,-27938.02185227,0.00079452,7]
[354826036,1740720647885,-876.98260126,0.00079452,7]
[354826060,1740720741115,732.0,0.00049,120]
[354826061,1740720802787,1009.74354687,0.00074331,120]
[354826062,1740721084091,500.0,0.00027,30]
[354826064,1740721129078,5000.0,0.00028,10]
[354826065,1740721141299,46094.84348703,0.00074321,30]
[354826067,1740721216013,10282.0,0.00074321,30]
[354826068,1740721228746,1000.0,0.00074321,30]
[354826074,1740721544157,-151.0,0.00045,120]
[354826075,1740721544187,-128.37286535,0.00046731,2]
[354826076,1740721551562,292.68,0.00035,30]
[354826077,1740721631104,-57.01628565,0.00046731,2]
[354826078,1740721631126,-859.8392648,0.00047186,120]
[354826079,1740721631146,-280.335378,0.00047212,2]
[354826080,1740721631168,-209.0,0.00049,120]
[354826081,1740721631192,-732.0,0.00051,120]
[354826082,1740721631214,-148.33951741,0.00051,120]
[354826083,1740721632108,-60.66048259,0.00051,120]
[354826084,1740721632133,-185.389151,0.00051404,2]
[354826085,1740721632154,-700.0,0.00052999,15]
[354826086,1740721632176,-732.0,0.00053,120]
[354826087,1740721632201,-209.0,0.00053,120]
[354826088,1740721632223,-154.34294634,0.000546,2]
[354826089,1740721632247,-215.94,0.00054684,10]
[354826090,1740721632271,-179.95,0.00054684,10]
[354826091,1740721632297,-500.0,0.00054693,2]
[354826092,1740721632319,-500.0,0.00054693,120]
[354826093,1740721632342,-500.0,0.00054693,120]
[354826094,1740721632364,-500.0,0.00054693,120]
[354826095,1740721632388,-500.0,0.00054693,2]
[354826096,1740721632412,-500.0,0.00054693,120]
[354826097,1740721632436,-500.0,0.00054693,2]
[354826098,1740721632459,-275.26056738,0.00054693,2]
[354826099,1740721639125,-165.62390841,0.00054684,10]
[354826100,1740721640105,-24.73943262,0.00054693,2]
[354826101,1740721640127,-597.86256738,0.00054693,120]
[354826102,1740721642095,-759.06093228,0.00054693,120]
[354826106,1740721745106,-354.37592056,0.00054594,120]
[354826107,1740721745128,-1251.21469762,0.000546,28]
[354826108,1740721745149,-734.15,0.00054684,10]
[354826109,1740721745171,-1177.61650034,0.00054693,120]
[354826110,1740721745192,-2763.67727352,0.00054694,2]
[354826111,1740721750088,-8796.11320398,0.00054694,2]
[354826112,1740721773101,-8719.73468193,0.00054694,2]
[354826165,1740721832012,-480.81,0.00054694,2]
[354826172,1740721832068,-15001.48329797,0.00054694,2]
[354826178,1740721832113,-31584.80000198,0.00054694,2]
[354826317,1740721838019,-183.85449084,0.00054694,2]
[354826318,1740721838107,-24551.68437945,0.00054694,2]
[354826319,1740721838123,-129917.84267033,0.00054694,2]
[354826320,1740721838132,-161.79,0.000547,30]
[354826321,1740721838142,-27225.21,0.000547,30]
[354826322,1740721838151,-564.81,0.000547,30]
[354826323,1740721838161,-151.33,0.000547,30]
[354826324,1740721838170,-500.0,0.00054773,10]
[354826325,1740721838181,-500.0,0.00054773,10]
[354826326,1740721838190,-500.0,0.00054773,10]
[354826327,1740721838199,-500.0,0.00054793,30]
[354826328,1740721838209,-334.48075822,0.00054793,31]
[354826329,1740721838219,-257.04810025,0.00054793,120]
[354826330,1740721838228,-500.0,0.00054793,120]
[354826331,1740721838237,-574.30025276,0.00054793,120]
[354826332,1740721838247,-505.51858721,0.00054794,120]
[354826333,1740721838259,-500.0,0.00054794,30]
[354826334,1740721838269,-500.0,0.00054794,120]
[354826335,1740721838278,-503.32460322,0.00054794,120]
[354826336,1740721838287,-500.0,0.00054794,120]
[354826337,1740721838298,-504.13571377,0.00054794,120]
[354826338,1740721838307,-500.0,0.00054794,120]
[354826339,1740721838316,-500.0,0.00054794,120]
[354826340,1740721838326,-500.0,0.00054794,120]
[354826341,1740721838335,-500.0,0.00054794,120]
[354826342,1740721838346,-500.0,0.00054794,120]
[354826343,1740721838357,-500.0,0.00054794,120]
[354826344,1740721838366,-500.0,0.00054794,120]
[354826345,1740721838376,-500.0,0.00054794,120]
[354826346,1740721838386,-500.0,0.00054794,120]
[354826347,1740721838395,-500.0,0.00054794,120]
[354826348,1740721838405,-500.0,0.00054794,120]
[354826349,1740721838415,-500.0,0.00054794,120]
[354826350,1740721838424,-500.0,0.00054794,120]
[354826351,1740721838438,-500.0,0.00054794,120]
[354826352,1740721838447,-500.0,0.00054794,120]
[354826353,1740721838456,-500.0,0.00054794,120]
[354826354,1740721838466,-250.0,0.00054794,120]
[354826355,1740721838475,-500.0,0.00054794,120]
[354826356,1740721838484,-500.0,0.00054794,120]
[354826357,1740721838494,-500.0,0.00054794,120]
[354826358,1740721838503,-500.0,0.00054794,120]
[354826359,1740721838512,-500.0,0.00054794,120]
[354826360,1740721838522,-553.87066809,0.00054794,120]
[354826361,1740721838532,-500.0,0.00054794,120]
[354826362,1740721838542,-500.0,0.00054794,120]
[354826363,1740721838551,-500.0,0.00054794,120]
[354826364,1740721838561,-500.0,0.00054794,120]
[354826365,1740721838570,-500.0,0.00054794,120]
[354826366,1740721838579,-500.0,0.00054794,120]
[354826367,1740721838588,-500.0,0.00054794,120]
[354826368,1740721838599,-500.0,0.00054794,120]
[354826369,1740721838608,-188.45412673,0.00054794,120]
[354826370,1740721838617,-500.0,0.00054794,120]
[354826371,1740721838626,-500.0,0.00054794,120]
[354826372,1740721838636,-500.0,0.00054794,120]
[354826373,1740721838645,-504.67246536,0.00054794,120]
[354826374,1740721838655,-500.0,0.00054794,120]
[354826375,1740721838664,-500.0,0.00054794,120]
[354826376,1740721838673,-500.0,0.00054794,120]
[354826377,1740721838684,-500.0,0.00054794,120]
[354826378,1740721838693,-176.30572694,0.00054794,120]
[354826379,1740721838703,-500.0,0.00054794,120]
[354826380,1740721838713,-500.0,0.00054794,120]
[354826381,1740721838722,-266.50050266,0.00054794,120]
[354826382,1740721838732,-500.0,0.00054794,120]
[354826383,1740721838741,-500.0,0.00054794,120]
[354826384,1740721838750,-500.0,0.00054794,120]
[354826385,1740721838760,-504.72241222,0.00054794,120]
[354826386,1740721838769,-501.91662596,0.00054794,120]
[354826387,1740721838778,-500.0,0.00054794,120]
[354826388,1740721838787,-500.0,0.00054794,120]
[354826389,1740721838796,-500.0,0.00054794,120]
[354826390,1740721838806,-500.0,0.00054794,120]
[354826391,1740721838815,-500.0,0.00054794,120]
[354826392,1740721838824,-500.0,0.00054794,120]
[354826393,1740721838833,-500.0,0.00054794,120]
[354826394,1740721838842,-500.0,0.00054794,120]
[354826395,1740721838852,-606.25807251,0.00054794,120]
[354826396,1740721838861,-500.0,0.00054794,120]
[354826397,1740721838870,-500.0,0.00054794,120]
[354826398,1740721838879,-500.0,0.00054794,120]
[354826399,1740721838888,-500.0,0.00054794,120]
[354826400,1740721838897,-500.0,0.00054794,120]
[354826401,1740721838906,-500.0,0.00054794,120]
[354826402,1740721838915,-500.0,0.00054794,120]
[354826403,1740721838925,-502.51020373,0.00054794,120]
[354826404,1740721838935,-300.74465343,0.00054794,120]
[354826405,1740721838944,-500.0,0.00054794,120]
[354826406,1740721838953,-500.0,0.00054794,120]
[354826407,1740721838963,-500.0,0.00054794,120]
[354826408,1740721838972,-503.75331331,0.00054794,120]
[354826409,1740721838980,-500.0,0.00054794,120]
[354826410,1740721838990,-500.0,0.00054794,120]
[354826411,1740721838999,-500.0,0.00054794,120]
[354826412,1740721839009,-277.79982533,0.00054794,120]
[354826413,1740721839018,-483.68637877,0.00054794,120]
[354826414,1740721839027,-500.0,0.00054794,120]
[354826415,1740721839036,-500.0,0.00054794,120]
[354826416,1740721839046,-440.15,0.00054794,120]
[354826417,1740721839056,-500.0,0.00054794,120]
[354826418,1740721839065,-500.0,0.00054794,120]
[354826419,1740721839075,-500.0,0.00054794,120]
[354826420,1740721839084,-500.0,0.00054794,120]
[354826421,1740721839093,-500.0,0.00054794,120]
[354826422,1740721839102,-985.17,0.00054794,120]
[354826423,1740721839245,-500.0,0.00054794,120]
[354826424,1740721839257,-500.0,0.00054794,120]
[354826425,1740721839267,-500.0,0.00054794,120]
[354826426,1740721839278,-500.0,0.00054794,120]
[354826427,1740721839288,-588.55304267,0.00054794,120]
[354826428,1740721839297,-503.39136805,0.00054794,120]
[354826429,1740721839307,-500.0,0.00054794,120]
[354826430,1740721839316,-500.0,0.00054794,120]
[354826431,1740721839325,-500.0,0.00054794,120]
[354826432,1740721839334,-628.66,0.00054794,120]
[354826433,1740721839344,-500.0,0.00054794,120]
[354826434,1740721839354,-500.0,0.00054794,120]
[354826435,1740721839363,-637.25,0.00054794,120]
[354826436,1740721839373,-500.0,0.00054794,120]
[354826437,1740721839382,-513.52476774,0.00054794,120]
[354826438,1740721839391,-500.0,0.00054794,120]
[354826439,1740721839400,-500.0,0.00054794,120]
[354826440,1740721839410,-500.0,0.00054794,120]
[354826441,1740721839419,-500.0,0.00054794,120]
[354826442,1740721839430,-500.0,0.00054794,120]
[354826444,1740721839440,-500.0,0.00054794,120]
[354826446,1740721839449,-500.0,0.00054794,120]
[354826448,1740721839458,-500.0,0.00054794,120]
[354826450,1740721839467,-500.0,0.00054794,120]
[354826451,1740721839477,-256.46437848,0.00054794,30]
[354826452,1740721839486,-500.0,0.00054794,120]
[354826453,1740721839495,-501.93753664,0.00054794,120]
[354826454,1740721839504,-500.0,0.00054794,120]
[354826455,1740721839514,-500.0,0.00054794,120]
[354826457,1740721839523,-500.0,0.00054794,120]
[354826458,1740721839532,-309.61147831,0.00054794,120]
[354826459,1740721839541,-500.0,0.00054794,120]
[354826460,1740721839550,-500.0,0.00054794,120]
[354826461,1740721839559,-500.0,0.00054794,120]
[354826462,1740721839568,-630.4,0.00054794,120]
[354826463,1740721839577,-500.0,0.00054794,120]
[354826464,1740721839587,-500.0,0.00054794,120]
[354826465,1740721839596,-500.0,0.00054794,120]
[354826466,1740721839605,-500.0,0.00054794,120]
[354826467,1740721839614,-500.0,0.00054794,120]
[354826468,1740721839623,-500.0,0.00054794,120]
[354826469,1740721839633,-500.0,0.00054794,120]
[354826470,1740721839642,-507.98947781,0.00054794,120]
[354826471,1740721839652,-500.0,0.00054794,120]
[354826473,1740721839661,-500.9360455,0.00054794,120]
[354826474,1740721839670,-500.0,0.00054794,120]
[354826476,1740721839680,-500.0,0.00054794,120]
[354826478,1740721839690,-500.0,0.00054794,120]
[354826480,1740721839699,-500.0,0.00054794,120]
[354826482,1740721839708,-500.0,0.00054794,120]